bitfinex-derivatives/quotes_BTCF0:USTF0_20260104
["timestamp","ask_amount","ask_price","bid_price","bid_amount"]
[1767517446896,0.02415047,91396.0,91385.0,0.010947]
[1767517447194,0.010946,91397.0,91385.0,0.010947]
[1767517447399,0.02415078,91396.0,91385.0,0.010947]
[1767517447601,0.010946,91397.0,91385.0,0.010947]
[1767517447796,0.02415078,91396.0,91385.0,0.010947]
[1767517447997,0.010946,91397.0,91385.0,0.010947]
[1767517448198,0.02415077,91396.0,91385.0,0.010947]
[1767517448401,0.010946,91397.0,91385.0,0.010947]
[1767517448600,0.02415094,91396.0,91385.0,0.010947]
[1767517448802,0.010946,91397.0,91385.0,0.010947]
[1767517449001,0.02415095,91396.0,91385.0,0.010947]
[1767517449202,0.01568708,91395.0,91382.0,0.00016408]
[1767517449503,0.04747438,91392.0,91382.0,0.00016408]
[1767517450305,0.05842038,91392.0,91382.0,0.00016408]
[1767517452005,0.04747438,91392.0,91382.0,0.01111108]
[1767517452509,0.010946,91394.0,91382.0,0.01111108]
[1767517452809,0.010946,91392.0,91382.0,0.00016408]
[1767517454499,0.010946,91392.0,91380.0,0.010948]
[1767517456310,0.04747438,91390.0,91380.0,0.010948]
[1767517456511,0.010946,91392.0,91380.0,0.010948]
[1767517457111,0.010946,91392.0,91381.0,0.010947]
[1767517457510,0.010946,91394.0,91381.0,0.010947]
[1767517457711,0.09466911,91395.0,91381.0,0.010947]
[1767517458906,0.010946,91393.0,91381.0,0.010947]
[1767517459915,0.04747438,91391.0,91381.0,0.010947]
[1767517460609,0.04747438,91391.0,91378.0,0.09308]
[1767517460804,0.010947,91388.0,91378.0,0.09308]
[1767517461809,0.010947,91390.0,91378.0,0.09308]
[1767517462309,0.010947,91390.0,91378.0,0.104028]
[1767517462810,0.010947,91390.0,91379.0,0.010948]
[1767517463410,0.04747438,91391.0,91380.0,0.010948]
[1767517463916,0.04747438,91391.0,91381.0,0.010947]
[1767517464214,0.010946,91394.0,91378.0,0.09308]
[1767517464413,0.02419456,91393.0,91382.0,0.010947]
[1767517464615,0.010946,91394.0,91382.0,0.010947]
[1767517464817,0.02419448,91393.0,91382.0,0.010947]
[1767517465015,0.010946,91394.0,91382.0,0.010947]
[1767517465212,0.0241945,91393.0,91382.0,0.010947]
[1767517465516,0.010946,91394.0,91382.0,0.010947]
[1767517465816,0.02419416,91393.0,91382.0,0.010947]
[1767517466116,0.010946,91394.0,91382.0,0.010947]
[1767517467210,0.09466911,91395.0,91383.0,0.010947]
[1767517467413,0.02419392,91394.0,91383.0,0.010947]
[1767517467613,0.09466911,91395.0,91383.0,0.010947]
[1767517467821,0.02419392,91394.0,91383.0,0.010947]
[1767517468119,0.09466911,91395.0,91388.0,0.00114422]
[1767517468319,0.02419384,91394.0,91388.0,0.00114422]
[1767517468520,0.09466911,91395.0,91388.0,0.00114422]
[1767517468721,0.02419384,91394.0,91388.0,0.00114422]
[1767517468920,0.09466911,91395.0,91383.0,0.010947]
[1767517469117,0.02419381,91394.0,91383.0,0.010947]
[1767517469422,0.02419381,91393.0,91383.0,0.010947]
[1767517469611,0.09466911,91395.0,91383.0,0.010947]
[1767517469809,0.02419365,91394.0,91383.0,0.010947]
[1767517470022,0.02419365,91393.0,91383.0,0.010947]
[1767517470212,0.010946,91396.0,91383.0,0.010947]
[1767517470412,0.02419358,91395.0,91383.0,0.010947]
[1767517470620,0.02419358,91394.0,91383.0,0.010947]
[1767517470821,0.02419358,91393.0,91383.0,0.010947]
[1767517471012,0.010946,91396.0,91383.0,0.010947]
[1767517471212,0.02419356,91395.0,91383.0,0.010947]
[1767517471408,0.02419356,91394.0,91383.0,0.010947]
[1767517471622,0.02419356,91393.0,91383.0,0.010947]
[1767517471817,0.02660053,91396.0,91383.0,0.010947]
[1767517472116,0.03513951,91395.0,91383.0,0.010947]
[1767517472317,0.02419351,91394.0,91383.0,0.010947]
[1767517472524,0.02419351,91393.0,91383.0,0.010947]
[1767517472722,0.010946,91395.0,91383.0,0.010947]
[1767517472922,0.02419348,91394.0,91383.0,0.010947]
[1767517473222,0.02419348,91393.0,91383.0,0.010947]
[1767517473421,0.010946,91395.0,91383.0,0.010947]
[1767517473626,0.02419348,91394.0,91383.0,0.010947]
[1767517473922,0.02419348,91393.0,91383.0,0.010947]
[1767517474120,0.010946,91395.0,91383.0,0.010947]
[1767517474313,0.02419352,91394.0,91383.0,0.010947]
[1767517474513,0.02419352,91393.0,91383.0,0.010947]
[1767517474710,0.010946,91395.0,91383.0,0.010947]
[1767517474910,0.02419353,91394.0,91383.0,0.010947]
[1767517475125,0.02419353,91393.0,91383.0,0.010947]
[1767517475425,0.010946,91395.0,91383.0,0.010947]
[1767517475624,0.02419361,91394.0,91383.0,0.010947]
[1767517475922,0.02419361,91393.0,91383.0,0.010947]
[1767517476224,0.010946,91395.0,91383.0,0.010947]
[1767517476523,0.0241937,91394.0,91378.0,0.09308]
[1767517476721,0.0241937,91393.0,91378.0,0.10721002]
[1767517477018,0.01565453,91396.0,91378.0,0.10721002]
[1767517477216,0.02419388,91395.0,91388.0,0.010947]
[1767517477412,0.01565453,91396.0,91388.0,0.010947]
[1767517477726,0.02416583,91395.0,91389.0,0.010947]
[1767517477920,0.09308,91398.0,91389.0,0.010947]
[1767517478120,0.02416588,91397.0,91389.0,0.010947]
[1767517478421,0.02416588,91396.0,91389.0,0.010947]
[1767517478623,0.02416588,91395.0,91380.0,0.010948]
[1767517478919,0.01506102,91397.0,91380.0,0.010948]
[1767517479124,0.02416592,91396.0,91388.0,0.010947]
[1767517479322,0.02416592,91395.0,91388.0,0.010947]
[1767517479526,0.01506102,91397.0,91388.0,0.010947]
[1767517479726,0.02416601,91396.0,91388.0,0.010947]
[1767517480025,0.02416601,91395.0,91388.0,0.010947]
[1767517480226,0.01506102,91397.0,91388.0,0.010947]
[1767517480426,0.02416594,91396.0,91388.0,0.010947]
[1767517480725,0.02416594,91395.0,91388.0,0.010947]
[1767517480925,0.01506102,91397.0,91380.0,0.010948]
[1767517481231,0.02416594,91396.0,91387.0,0.010947]
[1767517481418,0.02416594,91395.0,91387.0,0.010947]
[1767517481618,0.01506102,91397.0,91387.0,0.010947]
[1767517481819,0.02416588,91396.0,91387.0,0.010947]
[1767517482021,0.02416588,91395.0,91387.0,0.010947]
[1767517482225,0.01506102,91397.0,91387.0,0.010947]
[1767517482419,0.02416592,91396.0,91387.0,0.010947]
[1767517482621,0.02416592,91395.0,91388.0,0.010947]
[1767517482822,0.02416592,91394.0,91388.0,0.010947]
[1767517483022,0.02416592,91393.0,91378.0,0.10721002]
[1767517483227,0.02416592,91392.0,91389.0,0.010947]
[1767517483429,9.2e-07,91391.0,91389.0,0.010947]
[1767517483632,0.01506102,91397.0,91389.0,0.010947]
[1767517486130,0.01506102,91397.0,91386.0,0.010947]
[1767517489938,0.02600702,91396.0,91384.0,0.010947]
[1767517490436,0.010946,91395.0,91378.0,0.10721002]
[1767517490734,0.010946,91395.0,91384.0,0.010947]
[1767517491123,0.01506102,91396.0,91384.0,0.010947]
[1767517491731,0.01506102,91395.0,91384.0,0.010947]
[1767517491932,0.10852805,91395.0,91384.0,0.010947]
[1767517493230,0.09346703,91393.0,91389.0,0.00106214]
[1767517493432,0.09346703,91393.0,91384.0,0.010947]
[1767517494630,0.09346703,91393.0,91381.0,0.010947]
[1767517494934,0.09346703,91393.0,91378.0,0.09308]
[1767517495437,0.04751454,91399.0,91379.0,0.01413002]
[1767517495736,0.02411209,91398.0,91379.0,0.01413002]
[1767517495931,0.02411209,91397.0,91379.0,0.01413002]
[1767517496133,0.02411209,91396.0,91379.0,0.01413002]
[1767517496438,0.02411209,91395.0,91385.0,0.010947]
[1767517496627,0.010946,91398.0,91385.0,0.010947]
[1767517496825,0.02411226,91397.0,91385.0,0.010947]
[1767517497131,0.02411226,91396.0,91385.0,0.010947]
[1767517497330,0.02411226,91395.0,91385.0,0.010947]
[1767517497628,0.010946,91398.0,91385.0,0.010947]
[1767517497830,0.02411231,91397.0,91385.0,0.010947]
[1767517498132,0.02411231,91396.0,91387.0,0.010947]
[1767517498439,0.02411231,91395.0,91388.0,0.010947]
[1767517498738,0.04751454,91399.0,91388.0,0.010947]
[1767517498941,0.02411258,91398.0,91388.0,0.010947]
[1767517499133,0.02411258,91397.0,91388.0,0.010947]
[1767517499333,0.02411258,91396.0,91388.0,0.010947]
[1767517499637,0.02411258,91395.0,91388.0,0.010947]
[1767517499932,0.04751454,91399.0,91388.0,0.010947]
[1767517500236,0.02411266,91398.0,91388.0,0.010947]
[1767517500436,0.02411266,91397.0,91388.0,0.010947]
[1767517500637,0.02411266,91396.0,91388.0,0.010947]
[1767517500936,0.02411266,91395.0,91388.0,0.010947]
[1767517501136,0.04751454,91399.0,91382.0,0.10701712]
[1767517501337,0.0350588,91398.0,91386.0,0.010947]
[1767517501526,0.0241128,91397.0,91386.0,0.010947]
[1767517502939,0.0241128,91397.0,91384.0,0.010947]
[1767517503638,0.010946,91396.0,91384.0,0.010947]
[1767517503840,0.0241128,91395.0,91384.0,0.010947]
[1767517505740,0.0241128,91395.0,91379.0,0.01341767]
[1767517507337,0.0241128,91395.0,91384.0,0.010947]
[1767517509242,0.0241128,91395.0,91385.0,0.010947]
[1767517512042,0.0241128,91395.0,91379.0,0.01341767]
[1767517512237,0.0241128,91394.0,91385.0,0.010947]
[1767517512439,0.010946,91398.0,91385.0,0.010947]
[1767517512736,0.024118,91397.0,91385.0,0.010947]
[1767517512936,0.024118,91396.0,91385.0,0.010947]
[1767517513136,0.024118,91395.0,91385.0,0.010947]
[1767517513339,0.024118,91394.0,91386.0,0.010947]
[1767517513539,0.010946,91397.0,91386.0,0.010947]
[1767517513742,0.02411805,91396.0,91386.0,0.010947]
[1767517514035,0.02411805,91395.0,91386.0,0.010947]
[1767517514241,0.02411805,91394.0,91386.0,0.010947]
[1767517514429,0.010946,91397.0,91386.0,0.010947]
[1767517514633,0.02411808,91396.0,91386.0,0.010947]
[1767517514829,0.02411808,91395.0,91386.0,0.010947]
[1767517515038,0.02411808,91394.0,91386.0,0.010947]
[1767517515242,0.010946,91397.0,91386.0,0.010947]
[1767517515445,0.0241181,91396.0,91386.0,0.010947]
[1767517515638,0.0241181,91395.0,91386.0,0.010947]
[1767517515839,0.0241181,91394.0,91386.0,0.010947]
[1767517516038,0.010946,91397.0,91386.0,0.010947]
[1767517516239,0.02411809,91396.0,91386.0,0.010947]
[1767517516542,0.02411809,91395.0,91384.0,0.010947]
[1767517516748,0.02411809,91394.0,91384.0,0.010947]
[1767517516944,0.02458564,91397.0,91384.0,0.010947]
[1767517517244,0.02411812,91396.0,91386.0,0.010947]
[1767517517445,0.02411812,91395.0,91378.0,0.10649767]
[1767517517641,0.02411812,91394.0,91386.0,0.010947]
[1767517517843,0.02458564,91397.0,91378.0,0.10649767]
[1767517518042,0.02411811,91396.0,91378.0,0.10649767]
[1767517518246,0.02411811,91395.0,91378.0,0.10649767]
[1767517518446,0.02411811,91394.0,91379.0,0.01341767]
[1767517518647,0.02458564,91397.0,91379.0,0.01341767]
[1767517518844,0.02411811,91396.0,91379.0,0.01341767]
[1767517519038,0.02411811,91395.0,91379.0,0.01341767]
[1767517519346,0.02411811,91394.0,91379.0,0.01341767]
[1767517519645,0.02458564,91397.0,91379.0,0.01341767]
[1767517519836,0.02412119,91396.0,91386.0,0.010947]
[1767517520041,0.02412119,91395.0,91386.0,0.010947]
[1767517520247,0.02412119,91394.0,91386.0,0.010947]
[1767517520442,0.02458564,91397.0,91386.0,0.010947]
[1767517520640,0.0241212,91396.0,91386.0,0.010947]
[1767517520841,0.0241212,91395.0,91386.0,0.010947]
[1767517521049,0.0241212,91394.0,91386.0,0.010947]
[1767517521250,0.02458564,91397.0,91386.0,0.010947]
[1767517521449,0.02412121,91396.0,91386.0,0.010947]
[1767517521649,0.02412121,91395.0,91386.0,0.010947]
[1767517521947,0.02412121,91394.0,91386.0,0.010947]
[1767517522148,0.01363964,91397.0,91379.0,0.01341767]
[1767517522334,0.02412127,91396.0,91379.0,0.01341767]
[1767517522539,0.02412127,91395.0,91385.0,0.010947]
[1767517522734,0.02412127,91394.0,91385.0,0.010947]
[1767517522944,0.01363964,91397.0,91385.0,0.010947]
[1767517523145,0.02412128,91396.0,91385.0,0.010947]
[1767517523334,0.02412128,91395.0,91385.0,0.010947]
[1767517523541,0.02412128,91394.0,91385.0,0.010947]
[1767517523840,0.01363964,91397.0,91385.0,0.010947]
[1767517524040,0.02412131,91396.0,91385.0,0.010947]
[1767517524244,0.02412131,91395.0,91385.0,0.010947]
[1767517524447,0.02412131,91394.0,91385.0,0.010947]
[1767517524750,0.01363964,91397.0,91385.0,0.010947]
[1767517524950,0.02412138,91396.0,91385.0,0.010947]
[1767517525151,0.02412138,91395.0,91379.0,0.01341767]
[1767517525357,0.02412138,91394.0,91379.0,0.01341767]
[1767517525648,0.01363964,91397.0,91379.0,0.01341767]
[1767517525850,0.02412145,91396.0,91379.0,0.01341767]
[1767517526056,0.02412145,91395.0,91385.0,0.010947]
[1767517526247,0.02412145,91394.0,91379.0,0.01341767]
[1767517526450,0.010946,91396.0,91379.0,0.01341767]
[1767517526651,0.02412144,91395.0,91386.0,0.010947]
[1767517526951,0.02412144,91394.0,91379.0,0.01341767]
[1767517527250,0.010946,91396.0,91384.0,0.010947]
[1767517527454,0.02412143,91395.0,91384.0,0.010947]
[1767517527644,0.02412143,91394.0,91378.0,0.09308]
[1767517527845,0.010946,91396.0,91386.0,0.010947]
[1767517528052,0.02412143,91395.0,91378.0,0.09308]
[1767517528251,0.02412143,91394.0,91378.0,0.10649767]
[1767517528451,0.010946,91396.0,91378.0,0.10649767]
[1767517528758,0.02412142,91395.0,91384.0,0.010947]
[1767517529058,0.02412142,91394.0,91378.0,0.10649767]
[1767517529246,0.010946,91396.0,91378.0,0.10649767]
[1767517529446,0.0241215,91395.0,91378.0,0.10649767]
[1767517529640,0.0241215,91394.0,91378.0,0.10649767]
[1767517529843,0.010946,91396.0,91378.0,0.10649767]
[1767517530046,0.0241215,91395.0,91378.0,0.10649767]
[1767517530250,0.0241215,91394.0,91378.0,0.10649767]
[1767517530445,0.010946,91396.0,91384.0,0.010947]
[1767517530645,0.02412151,91395.0,91384.0,0.010947]
[1767517530839,0.02412151,91394.0,91384.0,0.010947]
[1767517531039,0.010946,91395.0,91384.0,0.010947]
[1767517531244,0.02412151,91394.0,91385.0,0.010947]
[1767517531454,0.02458564,91397.0,91385.0,0.010947]
[1767517531756,0.02412161,91396.0,91385.0,0.010947]
[1767517532054,0.02412161,91395.0,91378.0,0.10649767]
[1767517532255,0.02412161,91394.0,91378.0,0.10649767]
[1767517532445,0.02412167,91393.0,91378.0,0.10649767]
[1767517532646,0.02412167,91392.0,91378.0,0.10649767]
[1767517532952,0.02412167,91391.0,91385.0,0.010947]
[1767517533254,0.02412167,91390.0,91378.0,0.10649767]
[1767517533454,0.02412167,91389.0,91378.0,0.10649767]
[1767517533656,0.02412167,91388.0,91378.0,0.10649767]
[1767517533856,0.02412167,91387.0,91378.0,0.10649767]
[1767517534049,0.010946,91396.0,91378.0,0.10649767]
[1767517534249,0.02412169,91395.0,91378.0,0.10649767]
[1767517534448,0.02412169,91394.0,91384.0,0.010947]
[1767517534649,0.02412169,91393.0,91384.0,0.010947]
[1767517534952,0.02412169,91392.0,91384.0,0.010947]
[1767517535248,0.02412169,91391.0,91384.0,0.00698558]
[1767517535447,0.02412169,91390.0,91384.0,0.00698558]
[1767517535647,0.02412169,91389.0,91384.0,0.00698558]
[1767517535849,0.02412169,91388.0,91386.0,0.010947]
[1767517536155,0.02412169,91387.0,91386.0,0.010947]
[1767517536754,0.02412169,91395.0,91384.0,0.010947]
[1767517538563,0.02412169,91395.0,91385.0,0.010947]
[1767517538864,0.02412169,91394.0,91385.0,0.010947]
[1767517539161,0.02412169,91393.0,91385.0,0.010947]
[1767517539362,0.02412169,91392.0,91383.0,0.010947]
[1767517539566,0.02412169,91391.0,91383.0,0.010947]
[1767517539755,0.02412169,91390.0,91384.0,0.010947]
[1767517540052,0.02412169,91389.0,91384.0,0.010947]
[1767517540250,0.01363964,91397.0,91378.0,0.10649767]
[1767517540456,0.01363964,91397.0,91385.0,0.010947]
[1767517540662,0.01363964,91397.0,91379.0,0.01422706]
[1767517540663,0.01363964,91397.0,91386.0,0.010947]
[1767517547776,0.01363964,91397.0,91384.0,0.010947]
[1767517547976,0.02458564,91397.0,91384.0,0.010947]
[1767517548684,0.010946,91396.0,91384.0,0.010947]
[1767517552188,0.02401401,91395.0,91384.0,0.010947]
[1767517552388,0.02401401,91394.0,91384.0,0.010947]
[1767517552687,0.010946,91396.0,91384.0,0.010947]
[1767517552884,0.02401401,91395.0,91383.0,0.010947]
[1767517553082,0.02401401,91394.0,91383.0,0.010947]
[1767517553284,0.010946,91395.0,91383.0,0.010947]
[1767517553486,0.02401393,91394.0,91383.0,0.010947]
[1767517553783,0.010946,91395.0,91383.0,0.010947]
[1767517553984,0.02401393,91394.0,91383.0,0.010947]
[1767517554184,0.010946,91395.0,91383.0,0.010947]
[1767517554384,0.02401391,91394.0,91383.0,0.010947]
[1767517554586,0.010946,91395.0,91383.0,0.010947]
[1767517554790,0.02401391,91394.0,91383.0,0.010947]
[1767517554982,0.010946,91395.0,91383.0,0.010947]
[1767517555182,0.02401391,91394.0,91383.0,0.010947]
[1767517555382,0.010946,91395.0,91383.0,0.010947]
[1767517555583,0.02401389,91394.0,91383.0,0.010947]
[1767517555791,0.010946,91395.0,91383.0,0.010947]
[1767517556089,0.0240139,91394.0,91383.0,0.010947]
[1767517556290,0.010946,91395.0,91383.0,0.010947]
[1767517556590,0.02401389,91394.0,91383.0,0.010947]
[1767517556790,0.010946,91395.0,91383.0,0.010947]
[1767517557086,0.02401389,91394.0,91383.0,0.010947]
[1767517557286,0.010946,91395.0,91383.0,0.010947]
[1767517557585,0.02401389,91394.0,91383.0,0.010947]
[1767517557785,0.010946,91395.0,91383.0,0.010947]
[1767517557982,0.02401389,91394.0,91383.0,0.010947]
[1767517558282,0.010946,91395.0,91383.0,0.010947]
[1767517558591,0.02401388,91394.0,91383.0,0.010947]
[1767517558790,0.010946,91395.0,91383.0,0.010947]
[1767517560793,0.010946,91394.0,91381.0,0.010948]
[1767517560992,0.010946,91394.0,91382.0,0.010947]
[1767517562196,0.010946,91394.0,91383.0,0.010947]
[1767517563784,0.010946,91394.0,91381.0,0.010948]
[1767517564091,0.010946,91394.0,91378.0,0.09308]
[1767517564092,0.02358968,91396.0,91378.0,0.09308]
[1767517564589,0.01264368,91396.0,91378.0,0.09308]
[1767517564796,0.01264368,91393.0,91378.0,0.09308]
[1767517565090,0.010947,91388.0,91378.0,0.09308]
[1767517565292,0.01264368,91378.0,91359.0,0.09777656]
[1767517565498,0.01264368,91377.0,91365.0,0.010949]
[1767517565792,0.11006099,91374.0,91360.0,0.09308]
[1767517565995,0.01264368,91371.0,91352.0,0.09777656]
[1767517566187,0.01095,91365.0,91355.0,0.09308]
[1767517566385,0.01264368,91366.0,91355.0,0.09308]
[1767517567095,0.01264368,91366.0,91355.0,0.104031]
[1767517569091,0.01264368,91366.0,91357.0,0.01095]
[1767517569295,0.09741731,91367.0,91357.0,0.01095]
[1767517570392,0.11006099,91367.0,91357.0,0.01095]
[1767517571094,0.11006099,91367.0,91362.0,0.0012506]
[1767517571791,0.11006099,91367.0,91364.0,0.00140572]
[1767517572398,0.11006099,91367.0,91365.0,0.00156084]
[1767517572588,0.11006099,91367.0,91359.0,0.01095]
[1767517573200,0.11006099,91367.0,91355.0,0.09308]
[1767517573201,0.01264368,91364.0,91355.0,0.010951]
[1767517573497,0.01264368,91364.0,91350.0,0.09308]
[1767517573498,0.01264368,91363.0,91350.0,0.09308]
[1767517573702,0.01264368,91363.0,91355.0,0.010951]
[1767517573908,0.01264368,91363.0,91350.0,0.09308]
[1767517574296,0.01264368,91363.0,91356.0,0.010951]
[1767517574497,0.01264368,91363.0,91357.0,0.01095]
[1767517574897,0.01264368,91363.0,91354.0,0.010951]
[1767517575192,0.01264368,91363.0,91350.0,0.09308]
[1767517575388,0.01264368,91363.0,91355.0,0.010951]
[1767517576194,0.01264368,91363.0,91357.0,0.01095]
[1767517577008,0.01264368,91363.0,91356.0,0.010951]
[1767517577205,0.01264368,91363.0,91355.0,0.010951]
[1767517577600,0.01264368,91363.0,91352.0,0.010951]
[1767517577807,0.01264368,91362.0,91352.0,0.010951]
[1767517578197,0.01264368,91362.0,91350.0,0.09308]
[1767517578400,0.04750877,91360.0,91350.0,0.09308]
[1767517578707,0.04750877,91360.0,91347.0,8.614e-05]
[1767517580409,0.04750877,91360.0,91354.0,0.010951]
[1767517580602,0.01264368,91362.0,91354.0,0.010951]
[1767517581202,0.01264368,91362.0,91347.0,8.614e-05]
[1767517581905,0.11006099,91359.0,91347.0,8.614e-05]
[1767517582109,0.04750877,91360.0,91347.0,8.614e-05]
[1767517582110,0.01264368,91357.0,91347.0,8.614e-05]
[1767517582314,0.01264368,91357.0,91349.0,0.010951]
[1767517582512,0.01264368,91357.0,91348.0,0.010951]
[1767517583209,0.01264368,91356.0,91348.0,0.01090024]
[1767517583715,0.09741731,91357.0,91348.0,0.010952]
[1767517584207,0.09741731,91357.0,91347.0,8.614e-05]
[1767517584414,0.09741731,91357.0,91348.0,0.010952]
[1767517584710,0.11006099,91357.0,91347.0,8.614e-05]
[1767517584911,0.01264368,91356.0,91347.0,8.614e-05]
[1767517585110,0.01264368,91356.0,91345.0,0.09308]
[1767517585111,0.01264368,91355.0,91345.0,0.09308]
[1767517585310,0.01264368,91354.0,91345.0,0.09308]
[1767517585609,0.01264368,91352.0,91345.0,0.0912663]
[1767517585813,0.09741731,91353.0,91345.0,0.0912663]
[1767517586314,0.0001263,91352.0,91345.0,0.0912663]
[1767517586912,0.11006099,91351.0,91340.0,0.010952]
[1767517587111,0.01264368,91348.0,91335.0,0.09308]
[1767517587302,0.11006099,91348.0,91340.0,0.010952]
[1767517588517,0.11006099,91348.0,91335.0,0.09308]
[1767517588518,0.11006099,91348.0,91338.0,0.010953]
[1767517588919,0.11006099,91348.0,91336.0,0.010953]
[1767517589617,0.11006099,91342.0,91328.0,0.09308]
[1767517589913,0.04750877,91340.0,91333.0,0.010953]
[1767517590103,0.09741731,91342.0,91333.0,0.010953]
[1767517590516,0.09741731,91342.0,91334.0,0.010953]
[1767517591017,0.09741731,91342.0,91328.0,0.09308]
[1767517591318,0.04750877,91340.0,91334.0,0.010953]
[1767517591520,0.09741731,91342.0,91336.0,0.010953]
[1767517591721,0.09741731,91342.0,91333.0,0.010953]
[1767517591914,0.09741731,91342.0,91334.0,0.010953]
[1767517592516,0.10842739,91341.0,91325.0,0.09308]
[1767517592717,0.15216499,91340.0,91325.0,0.09308]
[1767517592921,0.15216499,91340.0,91332.0,0.010953]
[1767517593724,0.10521848,91338.0,91327.0,0.010954]
[1767517594016,0.0001263,91337.0,91325.0,0.09308]
[1767517595921,0.0001263,91337.0,91328.0,0.010954]
[1767517596522,0.0001263,91337.0,91325.0,0.09308]
[1767517597209,0.0001263,91337.0,91329.0,0.010954]
[1767517601424,0.0001263,91337.0,91326.0,0.010954]
[1767517601923,0.010953,91336.0,91325.0,0.09308]
[1767517602319,0.0970781,91332.0,91312.0,0.010956]
[1767517602520,0.04750877,91330.0,91322.0,0.09312]
[1767517603618,0.0972044,91337.0,91322.0,0.09312]
[1767517603822,0.04750877,91332.0,91328.0,0.010954]
[1767517604023,0.0972044,91337.0,91326.0,0.010954]
[1767517605222,0.0972044,91337.0,91322.0,0.09312]
[1767517605723,0.04750877,91332.0,91322.0,0.09312]
[1767517608720,0.010953,91333.0,91322.0,0.09312]
[1767517609023,0.04750877,91332.0,91323.0,0.010955]
[1767517610720,0.04750877,91332.0,91322.0,0.09312]
[1767517612623,0.04750877,91332.0,91323.0,0.010955]
[1767517613019,0.04750877,91332.0,91322.0,0.09312]
[1767517613221,0.04750877,91332.0,91322.0,0.104075]
[1767517614424,0.04750877,91332.0,91322.0,0.09312]
[1767517614627,0.04750877,91332.0,91322.0,0.104075]
[1767517615222,0.04750877,91332.0,91324.0,0.010954]
[1767517616632,0.04750877,91332.0,91322.0,0.104075]
[1767517616933,0.11358416,91334.0,91322.0,0.09312]
[1767517617124,0.04750877,91332.0,91322.0,0.09312]
[1767517618026,0.04750877,91332.0,91321.0,0.010955]
[1767517618331,0.010954,91329.0,91319.0,0.00219014]
[1767517618528,0.05846277,91329.0,91319.0,0.00219014]
[1767517619432,0.04750877,91329.0,91319.0,0.01314514]
[1767517619835,0.04750877,91329.0,91319.0,0.00219014]
[1767517620430,0.05846277,91329.0,91319.0,0.00219014]
[1767517620936,0.010954,91328.0,91319.0,0.00219014]
[1767517621235,0.04750877,91329.0,91319.0,0.00219014]
[1767517621432,0.05846277,91329.0,91319.0,0.00219014]
[1767517621623,0.09502228,91328.0,91313.0,0.010956]
[1767517621828,0.04750877,91323.0,91316.0,0.010955]
[1767517622225,0.04750877,91323.0,91314.0,0.104076]
[1767517622427,0.010954,91326.0,91314.0,0.09312]
[1767517622636,0.02375685,91325.0,91314.0,0.09312]
[1767517622936,0.07126562,91324.0,91314.0,0.09312]
[1767517623137,0.02375685,91323.0,91314.0,0.09312]
[1767517623338,0.03471185,91322.0,91314.0,0.09312]
[1767517623525,0.010955,91320.0,91314.0,0.09312]
[1767517623730,0.02375685,91319.0,91314.0,0.09312]
[1767517623931,0.010955,91320.0,91314.0,0.09312]
[1767517624237,0.02375371,91319.0,91314.0,0.09312]
[1767517624431,9.911e-05,91321.0,91314.0,0.09312]
[1767517624632,0.02375051,91320.0,91314.0,0.09312]
[1767517624830,0.02375051,91319.0,91314.0,0.09312]
[1767517625031,9.911e-05,91321.0,91314.0,0.09312]
[1767517625232,0.02375058,91320.0,91314.0,0.104076]
[1767517625436,0.02375058,91319.0,91314.0,0.104076]
[1767517625733,9.911e-05,91321.0,91314.0,0.104076]
[1767517625931,0.10101427,91327.0,91314.0,0.104076]
[1767517627138,0.010954,91326.0,91314.0,0.104076]
[1767517627533,0.04750877,91324.0,91314.0,0.09312]
[1767517627730,0.09515912,91327.0,91314.0,0.09312]
[1767517628038,0.04750877,91324.0,91314.0,0.09312]
[1767517628239,0.04750877,91324.0,91314.0,0.104076]
[1767517629230,0.04750877,91324.0,91314.0,0.09312]
[1767517629739,0.14852404,91324.0,91314.0,0.09312]
[1767517630538,0.14244135,91324.0,91306.0,0.01155882]
[1767517630728,0.04750877,91320.0,91308.0,0.010956]
[1767517630932,0.04750877,91320.0,91305.0,0.18524976]
[1767517630933,0.010955,91319.0,91305.0,0.104077]
[1767517631235,0.010955,91317.0,91305.0,0.09312]
[1767517631439,0.04750877,91320.0,91305.0,0.09312]
[1767517631633,0.010955,91317.0,91305.0,0.10467882]
[1767517632134,0.010955,91317.0,91305.0,0.01155882]
[1767517632346,0.04750877,91320.0,91306.0,0.09312]
[1767517633032,0.04750877,91320.0,91305.0,0.01155882]
[1767517633234,0.04750877,91316.0,91306.0,0.09312]
[1767517633440,0.04750877,91320.0,91306.0,0.09312]
[1767517633635,0.04750877,91320.0,91302.0,0.01155882]
[1767517633636,0.04750877,91316.0,91302.0,0.01155882]
[1767517633840,0.010956,91310.0,91299.0,0.09312]
[1767517634033,0.010956,91311.0,91299.0,0.09312]
[1767517634230,0.04750877,91312.0,91300.0,0.010957]
[1767517634429,0.010956,91311.0,91299.0,0.09312]
[1767517635139,0.010956,91311.0,91299.0,0.104077]
[1767517635140,0.00012291,91310.0,91299.0,0.104077]
[1767517635339,0.00012291,91310.0,91302.0,0.010957]
[1767517637141,0.00012291,91310.0,91304.0,0.010957]
[1767517639335,0.00012291,91310.0,91299.0,0.09312]
[1767517639542,0.00012291,91310.0,91297.0,0.01155882]
[1767517639837,0.00012291,91310.0,91299.0,0.01155882]
[1767517640647,0.00012291,91310.0,91301.0,0.010957]
[1767517641245,0.00012291,91310.0,91298.0,0.104077]
[1767517641550,0.00012291,91310.0,91298.0,0.11563582]
[1767517641749,0.00012291,91310.0,91299.0,0.010957]
[1767517642045,0.00012291,91310.0,91299.0,0.02251582]
[1767517642548,0.00012291,91310.0,91299.0,0.010957]
[1767517642848,0.00012291,91310.0,91301.0,0.010957]
[1767517643147,0.00012291,91310.0,91300.0,0.010957]
[1767517644146,0.00012291,91310.0,91302.0,0.010957]
[1767517644348,0.00012291,91310.0,91300.0,0.010957]
[1767517645146,0.00012291,91310.0,91302.0,0.010957]
[1767517646048,0.00012291,91310.0,91291.0,0.09212976]
[1767517646245,0.09328426,91323.0,91308.0,0.01155882]
[1767517646445,0.02388428,91322.0,91313.0,0.010956]
[1767517646647,0.02388428,91321.0,91313.0,0.010956]
[1767517647044,0.4,91320.0,91313.0,0.010956]
[1767517647246,0.02388428,91319.0,91315.0,0.010956]
[1767517647852,0.02388428,91319.0,91313.0,0.010956]